[Event "56th Biel Festival MTO 2023"]
[White "Weishaeutel,Moritz"]
[Black "Samadov,Read"]
[Site "Biel"]
[Round "8.11"]
[Annotator "ChessBase"]
[Result "0-1"]
[Date "2023.07.26"]
[WhiteElo "2442"]
[BlackElo "2482"]
[PlyCount "54"]
[TimeControl "60"]

1. e4 {[%emt 0:0:0]} c5 {[%emt 0:0:0]} 2. Nf3 {[%emt 0:0:0]} d6 {[%emt 0:0:0]} 3. d4 {[%emt 0:0:0]} cxd4 {[%emt 0:0:0]} 4. Nxd4 {[%emt 0:0:0]} Nf6 {[%emt 0:0:0]} 5. Nc3 {[%emt 0:0:0]} a6 {[%emt 0:0:0]} 6. f3 {[%emt 0:0:0]} e5 {[%emt 0:0:0]} 7. Nb3 {[%emt 0:0:0]} Be6 {[%emt 0:0:0]} 8. Be3 {[%emt 0:0:0]} Be7 {[%emt 0:0:0]} 9. Qd2 {[%emt 0:0:0]} Nbd7 {[%emt 0:0:0]} 10. g4 {[%emt 0:0:0]} O-O {[%emt 0:0:0]} 11. O-O-O {[%emt 0:0:0]} b5 {[%emt 0:0:0]} 12. g5 {[%emt 0:0:0]} b4 {[%emt 0:0:0]} 13. Ne2 {[%emt 0:0:0]} Nh5 {[%emt 0:0:0]} 14. Ng3 {[%emt 0:0:0]} a5 {[%emt 0:0:0]} 15. Nxh5 {[%emt 0:0:0]} a4 {[%emt 0:0:0]} 16. Na1 {[%emt 0:8:1]} Bxa2 {[%emt 0:0:0]} 17. b3 {[%emt 0:4:5]} axb3 {[%emt 0:41:12]} 18. cxb3 {[%emt 0:1:31]} Rc8+ {[%emt 0:5:20]} 19. Bc4 {[%emt 0:5:5]} Rxc4+ {[%emt 0:5:11]} 20. bxc4 {[%emt 0:0:38]} Qa5 {[%emt 0:1:49]} 21. Nc2 {[%emt 0:7:54]} Rb8 {[%emt 0:2:24]} 22. Qd5 {[%emt 0:27:3]} Qa4 {[%emt 0:8:35]} 23. Kb2 {[%emt 0:4:0]} Rc8 {[%emt 0:4:14]} 24. Ra1 {[%emt 0:10:52]} Qb3+ {[%emt 0:0:43]} 25. Kc1 {[%emt 0:4:19]} Rxc4 {[%emt 0:2:44]} 26. Qd2 {[%emt 0:0:30]} Qa4 {[%emt 0:0:30]} 27. Kb2 {[%emt 0:0:30]} Rxc2+ {[%emt 0:0:10]} 0-1

[Event "56th Biel Festival MTO 2023"]
[White "Vantika Agrawal"]
[Black "Wang,Chen"]
[Site "Biel"]
[Round "8.12"]
[Annotator "ChessBase"]
[Result "1-0"]
[Date "2023.07.26"]
[WhiteElo "2428"]
[BlackElo "2477"]
[PlyCount "67"]
[TimeControl "60"]

1. d4 {[%emt 0:0:0]} Nf6 {[%emt 0:0:0]} 2. c4 {[%emt 0:0:0]} e6 {[%emt 0:0:0]} 3. g3 {[%emt 0:0:0]} Bb4+ {[%emt 0:0:0]} 4. Bd2 {[%emt 0:0:0]} Be7 {[%emt 0:0:0]} 5. Bg2 {[%emt 0:0:0]} O-O {[%emt 0:0:0]} 6. Nf3 {[%emt 0:0:0]} d5 {[%emt 0:0:0]} 7. O-O {[%emt 0:0:0]} c6 {[%emt 0:0:0]} 8. Qc2 {[%emt 0:1:26]} Nbd7 {[%emt 0:0:0]} 9. Bf4 {[%emt 0:0:42]} a5 {[%emt 0:0:0]} 10. Rd1 {[%emt 0:2:41]} a4 {[%emt 0:0:0]} 11. a3 {[%emt 0:2:7]} h6 {[%emt 0:0:0]} 12. Nc3 {[%emt 0:5:25]} Qa5 {[%emt 0:1:20]} 13. e4 {[%emt 0:6:21]} dxc4 {[%emt 0:1:40]} 14. Qe2 {[%emt 0:2:55]} Nb6 {[%emt 0:17:15]} 15. Ne5 {[%emt 0:9:58]} Nfd7 {[%emt 0:16:6]} 16. Ng4 {[%emt 0:22:40]} f6 {[%emt 0:20:21]} 17. Bd2 {[%emt 0:4:50]} Rf7 {[%emt 0:5:16]} 18. Nd5 {[%emt 0:11:20]} Qb5 {[%emt 0:0:6]} 19. Nc7 {[%emt 0:7:26]} Qb3 {[%emt 0:4:53]} 20. Nxa8 {[%emt 0:4:32]} Nxa8 {[%emt 0:0:2]} 21. Bc3 {[%emt 0:5:19]} Ndb6 {[%emt 0:2:40]} 22. d5 {[%emt 0:6:25]} e5 {[%emt 0:1:23]} 23. Ne3 {[%emt 0:1:6]} Bd7 {[%emt 0:1:47]} 24. d6 {[%emt 0:2:53]} Bf8 {[%emt 0:0:36]} 25. f4 {[%emt 0:0:51]} Qb5 {[%emt 0:0:17]} 26. Bf3 {[%emt 0:1:34]} Be6 {[%emt 0:0:52]} 27. fxe5 {[%emt 0:2:51]} fxe5 {[%emt 0:0:5]} 28. Kg2 {[%emt 0:0:21]} Nc8 {[%emt 0:0:37]} 29. Bh5 {[%emt 0:0:41]} Rd7 {[%emt 0:0:46]} 30. Bg4 {[%emt 0:0:22]} Rxd6 {[%emt 0:9:47]} 31. Rxd6 {[%emt 0:0:19]} Bxg4 {[%emt 0:0:11]} 32. Qxg4 {[%emt 0:0:6]} Nxd6 {[%emt 0:0:5]} 33. Qe6+ {[%emt 0:0:8]} Kh7 {[%emt 0:0:6]} 34. Rf1 {[%emt 0:0:31]} 1-0

[Event "56th Biel Festival MTO 2023"]
[White "Huston,Gus"]
[Black "Muthaiah AL"]
[Site "Biel"]
[Round "8.13"]
[Annotator "ChessBase"]
[Result "1/2-1/2"]
[Date "2023.07.26"]
[WhiteElo "2341"]
[BlackElo "2445"]
[PlyCount "107"]
[TimeControl "60"]

1. e4 {[%emt 0:0:0]} c5 {[%emt 0:0:0]} 2. Nf3 {[%emt 0:0:0]} e6 {[%emt 0:0:0]} 3. d4 {[%emt 0:0:0]} cxd4 {[%emt 0:0:0]} 4. Nxd4 {[%emt 0:0:0]} Nc6 {[%emt 0:0:0]} 5. Nc3 {[%emt 0:0:0]} Qc7 {[%emt 0:0:0]} 6. f4 {[%emt 0:0:0]} a6 {[%emt 0:0:0]} 7. Nxc6 {[%emt 0:0:0]} bxc6 {[%emt 0:0:0]} 8. Bd3 {[%emt 0:0:0]} d5 {[%emt 0:0:0]} 9. Qe2 {[%emt 0:0:0]} Nf6 {[%emt 0:0:0]} 10. O-O {[%emt 0:0:0]} Be7 {[%emt 0:4:7]} 11. Kh1 {[%emt 0:0:0]} c5 {[%emt 0:4:27]} 12. b3 {[%emt 0:0:0]} O-O {[%emt 0:4:12]} 13. Bd2 {[%emt 0:0:0]} Bb7 {[%emt 0:16:11]} 14. Rae1 {[%emt 0:8:25]} dxe4 {[%emt 0:20:7]} 15. Nxe4 {[%emt 0:0:21]} Nxe4 {[%emt 0:0:26]} 16. Bxe4 {[%emt 0:0:2]} Bf6 {[%emt 0:0:24]} 17. f5 {[%emt 0:6:27]} Rfe8 {[%emt 0:2:49]} 18. Bf4 {[%emt 0:6:29]} Qb6 {[%emt 0:3:39]} 19. Bxb7 {[%emt 0:4:55]} Qxb7 {[%emt 0:0:11]} 20. Rf3 {[%emt 0:4:31]} Qd5 {[%emt 0:9:50]} 21. Bg3 {[%emt 0:2:3]} h6 {[%emt 0:4:48]} 22. c4 {[%emt 0:0:23]} Qc6 {[%emt 0:0:55]} 23. Qf1 {[%emt 0:19:23]} a5 {[%emt 0:8:4]} 24. Rfe3 {[%emt 0:3:10]} a4 {[%emt 0:2:45]} 25. fxe6 {[%emt 0:1:0]} Rxe6 {[%emt 0:0:19]} 26. Rxe6 {[%emt 0:2:16]} fxe6 {[%emt 0:0:2]} 27. Qe2 {[%emt 0:3:54]} axb3 {[%emt 0:3:40]} 28. axb3 {[%emt 0:0:9]} Ra3 {[%emt 0:1:27]} 29. Rb1 {[%emt 0:1:12]} Bd4 {[%emt 0:7:32]} 30. Be5 {[%emt 0:1:57]} Bxe5 {[%emt 0:4:43]} 31. Qxe5 {[%emt 0:0:2]} Ra2 {[%emt 0:0:24]} 32. Qg3 {[%emt 0:1:23]} Qe4 {[%emt 0:2:39]} 33. Re1 {[%emt 0:5:46]} Re2 {[%emt 0:0:9]} 34. Rxe2 {[%emt 0:0:39]} Qxe2 {[%emt 0:0:2]} 35. h3 {[%emt 0:0:1]} Qd1+ {[%emt 0:1:57]} 36. Kh2 {[%emt 0:0:4]} Qd4 {[%emt 0:0:17]} 37. Qc7 {[%emt 0:8:46]} Kh7 {[%emt 0:0:41]} 38. Qf7 {[%emt 0:1:50]} Qe5+ {[%emt 0:0:37]} 39. Kg1 {[%emt 0:0:14]} Qe1+ {[%emt 0:0:22]} 40. Kh2 {[%emt 0:0:1]} Qe5+ {[%emt 0:0:1]} 41. Kg1 {[%emt 0:30:18]} Qd4+ {[%emt 0:0:0]} 42. Kh1 {[%emt 0:0:0]} e5 {[%emt 0:0:0]} 43. Qf5+ {[%emt 0:0:0]} Kg8 {[%emt 0:0:0]} 44. Qe6+ {[%emt 0:0:0]} Kf8 {[%emt 0:0:0]} 45. Kh2 {[%emt 0:0:0]} e4 {[%emt 0:6:57]} 46. h4 {[%emt 0:0:0]} Qe3 {[%emt 0:14:49]} 47. Qc8+ {[%emt 0:0:0]} Ke7 {[%emt 0:2:43]} 48. Qc7+ {[%emt 0:0:0]} Kf6 {[%emt 0:0:53]} 49. Qd6+ {[%emt 0:0:0]} Kf5 {[%emt 0:4:37]} 50. Qd7+ {[%emt 0:0:0]} Kg6 {[%emt 0:1:29]} 51. Qe6+ {[%emt 0:0:0]} Kh5 {[%emt 0:1:48]} 52. Qf5+ {[%emt 0:0:0]} g5 {[%emt 0:3:6]} 53. hxg5 {[%emt 0:0:0]} hxg5 {[%emt 0:0:7]} 54. Qh7+ {[%emt 0:0:0]} 1/2-1/2

[Event "56th Biel Festival MTO 2023"]
[White "Licznerski,Lukasz"]
[Black "Dotzer,Lukas"]
[Site "Biel"]
[Round "8.14"]
[Annotator "ChessBase"]
[Result "0-1"]
[Date "2023.07.26"]
[WhiteElo "2430"]
[BlackElo "2369"]
[PlyCount "88"]
[TimeControl "60"]

1. e4 {[%emt 0:0:0]} c5 {[%emt 0:0:0]} 2. Nf3 {[%emt 0:0:0]} e6 {[%emt 0:0:0]} 3. d4 {[%emt 0:0:0]} cxd4 {[%emt 0:0:0]} 4. Nxd4 {[%emt 0:0:0]} Nc6 {[%emt 0:0:0]} 5. Nc3 {[%emt 0:0:0]} Qc7 {[%emt 0:0:0]} 6. Be3 {[%emt 0:1:22]} a6 {[%emt 0:0:0]} 7. g4 {[%emt 0:3:44]} b5 {[%emt 0:0:0]} 8. Nxc6 {[%emt 0:1:28]} Qxc6 {[%emt 0:0:0]} 9. Qd2 {[%emt 0:2:50]} b4 {[%emt 0:0:0]} 10. Ne2 {[%emt 0:3:52]} Qxe4 {[%emt 0:0:0]} 11. Rg1 {[%emt 0:0:15]} Qc6 {[%emt 0:0:0]} 12. Bg2 {[%emt 0:0:10]} d5 {[%emt 0:0:0]} 13. O-O-O {[%emt 0:0:11]} Bb7 {[%emt 0:0:0]} 14. f4 {[%emt 0:0:25]} Nf6 {[%emt 0:0:0]} 15. f5 {[%emt 0:0:51]} exf5 {[%emt 0:0:0]} 16. gxf5 {[%emt 0:0:45]} O-O-O {[%emt 0:14:19]} 17. Kb1 {[%emt 0:16:47]} Bd6 {[%emt 0:11:7]} 18. Bf3 {[%emt 0:8:54]} Ne4 {[%emt 0:8:55]} 19. Bxe4 {[%emt 0:3:49]} dxe4 {[%emt 0:0:23]} 20. Nd4 {[%emt 0:0:18]} Qc4 {[%emt 0:12:4]} 21. Rxg7 {[%emt 0:2:28]} Be5 {[%emt 0:2:58]} 22. Rgg1 {[%emt 0:13:45]} Rd5 {[%emt 0:5:12]} 23. c3 {[%emt 0:6:59]} bxc3 {[%emt 0:16:44]} 24. bxc3 {[%emt 0:0:20]} Rhd8 {[%emt 0:7:11]} 25. Ka1 {[%emt 0:0:54]} Ra5 {[%emt 0:5:49]} 26. Rb1 {[%emt 0:5:13]} Bd5 {[%emt 0:5:52]} 27. Rb2 {[%emt 0:5:28]} Ra3 {[%emt 0:1:8]} 28. Rc1 {[%emt 0:2:33]} Rd7 {[%emt 0:1:55]} 29. Rb3 {[%emt 0:14:11]} Qxb3 {[%emt 0:9:14]} 30. Nxb3 {[%emt 0:0:4]} Bxb3 {[%emt 0:0:7]} 31. Bd4 {[%emt 0:0:15]} Rxa2+ {[%emt 0:2:15]} 32. Qxa2 {[%emt 0:0:4]} Bxa2 {[%emt 0:0:7]} 33. Bxe5 {[%emt 0:0:8]} Rd5 {[%emt 0:0:57]} 34. Bd4 {[%emt 0:8:25]} Bc4 {[%emt 0:0:2]} 35. f6 {[%emt 0:0:48]} Ra5+ {[%emt 0:0:38]} 36. Kb1 {[%emt 0:0:16]} Rh5 {[%emt 0:0:43]} 37. Kb2 {[%emt 0:0:28]} Rxh2+ {[%emt 0:0:19]} 38. Ka3 {[%emt 0:0:1]} a5 {[%emt 0:0:42]} 39. Ra1 {[%emt 0:0:5]} h5 {[%emt 0:0:31]} 40. Ka4 {[%emt 0:0:46]} h4 {[%emt 0:0:26]} 41. Kxa5 {[%emt 0:30:21]} Ra2+ {[%emt 0:30:31]} 42. Rxa2 {[%emt 0:0:5]} Bxa2 {[%emt 0:0:8]} 43. Kb4 {[%emt 0:0:18]} h3 {[%emt 0:0:8]} 44. Bg1 {[%emt 0:0:3]} e3 {[%emt 0:0:7]} 0-1

[Event "56th Biel Festival MTO 2023"]
[White "Aarav Dengla"]
[Black "Rohith Krishna S"]
[Site "Biel"]
[Round "8.15"]
[Annotator "ChessBase"]
[Result "1/2-1/2"]
[Date "2023.07.26"]
[WhiteElo "2343"]
[BlackElo "2429"]
[PlyCount "68"]
[TimeControl "60"]

1. e4 {[%emt 0:0:0]} e5 {[%emt 0:0:0]} 2. Nf3 {[%emt 0:0:0]} Nc6 {[%emt 0:0:0]} 3. Bc4 {[%emt 0:0:0]} Bc5 {[%emt 0:0:0]} 4. c3 {[%emt 0:0:0]} Nf6 {[%emt 0:0:0]} 5. d3 {[%emt 0:0:0]} d6 {[%emt 0:0:0]} 6. O-O {[%emt 0:0:0]} a5 {[%emt 0:0:0]} 7. Re1 {[%emt 0:0:0]} Ba7 {[%emt 0:0:0]} 8. a4 {[%emt 0:0:0]} O-O {[%emt 0:0:0]} 9. h3 {[%emt 0:0:0]} h6 {[%emt 0:0:0]} 10. Bb3 {[%emt 0:0:0]} Nh5 {[%emt 0:1:50]} 11. Na3 {[%emt 0:10:55]} Qf6 {[%emt 0:12:11]} 12. Nb5 {[%emt 0:4:41]} Bb6 {[%emt 0:0:51]} 13. d4 {[%emt 0:4:14]} Nf4 {[%emt 0:2:0]} 14. Nh2 {[%emt 0:22:9]} Ne7 {[%emt 0:18:57]} 15. Bxf4 {[%emt 0:15:54]} Qxf4 {[%emt 0:0:10]} 16. Re3 {[%emt 0:2:49]} Kh8 {[%emt 0:15:24]} 17. Qe2 {[%emt 0:7:4]} f5 {[%emt 0:2:28]} 18. Rf3 {[%emt 0:1:41]} Qg5 {[%emt 0:0:9]} 19. exf5 {[%emt 0:3:25]} Bxf5 {[%emt 0:1:10]} 20. Bc2 {[%emt 0:4:48]} Bxc2 {[%emt 0:5:18]} 21. Qxc2 {[%emt 0:0:17]} Nf5 {[%emt 0:0:11]} 22. Re1 {[%emt 0:8:9]} exd4 {[%emt 0:14:37]} 23. Nxd4 {[%emt 0:0:26]} Bxd4 {[%emt 0:3:52]} 24. cxd4 {[%emt 0:0:25]} Nxd4 {[%emt 0:5:7]} 25. Rxf8+ {[%emt 0:0:7]} Rxf8 {[%emt 0:0:4]} 26. Qxc7 {[%emt 0:4:37]} Qd2 {[%emt 0:3:11]} 27. Rf1 {[%emt 0:0:45]} Ne2+ {[%emt 0:5:9]} 28. Kh1 {[%emt 0:0:6]} Qd4 {[%emt 0:2:32]} 29. Qe7 {[%emt 0:3:37]} Rxf2 {[%emt 0:1:14]} 30. Rxf2 {[%emt 0:0:14]} Qxf2 {[%emt 0:0:18]} 31. Qe8+ {[%emt 0:0:5]} Kh7 {[%emt 0:0:4]} 32. Qe4+ {[%emt 0:0:4]} Kh8 {[%emt 0:0:6]} 33. Qe8+ {[%emt 0:0:3]} Kh7 {[%emt 0:0:6]} 34. Qe4+ {[%emt 0:0:4]} Kh8 {[%emt 0:0:5]} 1/2-1/2

[Event "56th Biel Festival MTO 2023"]
[White "Rosen,Eric"]
[Black "Huang,Qian"]
[Site "Biel"]
[Round "8.16"]
[Annotator "ChessBase"]
[Result "1/2-1/2"]
[Date "2023.07.26"]
[WhiteElo "2344"]
[BlackElo "2422"]
[PlyCount "49"]
[TimeControl "60"]

1. e4 {[%emt 0:0:0]} c5 {[%emt 0:0:0]} 2. c3 {[%emt 0:0:0]} Nf6 {[%emt 0:0:0]} 3. e5 {[%emt 0:0:0]} Nd5 {[%emt 0:0:0]} 4. Nf3 {[%emt 0:0:0]} Nc6 {[%emt 0:0:0]} 5. Bc4 {[%emt 0:0:0]} Nb6 {[%emt 0:0:0]} 6. Bb3 {[%emt 0:0:0]} d6 {[%emt 0:8:38]} 7. exd6 {[%emt 0:0:0]} Qxd6 {[%emt 0:0:6]} 8. O-O {[%emt 0:0:0]} Be6 {[%emt 0:3:5]} 9. d4 {[%emt 0:0:0]} cxd4 {[%emt 0:6:57]} 10. Na3 {[%emt 0:10:26]} a6 {[%emt 0:12:31]} 11. Bxe6 {[%emt 0:4:32]} Qxe6 {[%emt 0:5:14]} 12. Nxd4 {[%emt 0:0:18]} Nxd4 {[%emt 0:0:26]} 13. Qxd4 {[%emt 0:0:11]} Rd8 {[%emt 0:1:34]} 14. Qh4 {[%emt 0:2:27]} Qc6 {[%emt 0:0:42]} 15. Be3 {[%emt 0:13:43]} e6 {[%emt 0:2:6]} 16. Bxb6 {[%emt 0:18:5]} Qxb6 {[%emt 0:0:6]} 17. Qa4+ {[%emt 0:0:5]} Rd7 {[%emt 0:4:15]} 18. Rad1 {[%emt 0:1:48]} Qc7 {[%emt 0:1:19]} 19. Rd3 {[%emt 0:5:58]} Bd6 {[%emt 0:4:42]} 20. Rfd1 {[%emt 0:3:10]} O-O {[%emt 0:0:49]} 21. g3 {[%emt 0:0:55]} Rdd8 {[%emt 0:2:57]} 22. Nc4 {[%emt 0:4:57]} Bc5 {[%emt 0:2:20]} 23. Rxd8 {[%emt 0:3:29]} Rxd8 {[%emt 0:0:5]} 24. Rxd8+ {[%emt 0:0:49]} Qxd8 {[%emt 0:0:6]} 25. Qc2 {[%emt 0:0:18]} 1/2-1/2

[Event "56th Biel Festival MTO 2023"]
[White "Nie,Xinyang"]
[Black "Jinan Jomon"]
[Site "Biel"]
[Round "8.17"]
[Annotator "ChessBase"]
[Result "1-0"]
[Date "2023.07.26"]
[WhiteElo "2288"]
[BlackElo "2409"]
[PlyCount "123"]
[TimeControl "60"]

1. d4 {[%emt 0:0:0]} Nf6 {[%emt 0:0:0]} 2. c4 {[%emt 0:0:0]} e6 {[%emt 0:0:0]} 3. Nf3 {[%emt 0:0:0]} Bb4+ {[%emt 0:0:0]} 4. Nbd2 {[%emt 0:0:0]} b6 {[%emt 0:0:0]} 5. a3 {[%emt 0:0:0]} Bxd2+ {[%emt 0:0:0]} 6. Bxd2 {[%emt 0:0:0]} Bb7 {[%emt 0:0:0]} 7. e3 {[%emt 0:0:0]} d6 {[%emt 0:0:0]} 8. Bd3 {[%emt 0:0:0]} O-O {[%emt 0:0:0]} 9. Qc2 {[%emt 0:0:0]} c5 {[%emt 0:4:47]} 10. e4 {[%emt 0:0:0]} cxd4 {[%emt 0:2:21]} 11. Nxd4 {[%emt 0:0:0]} Nbd7 {[%emt 0:0:4]} 12. O-O {[%emt 0:0:0]} Rc8 {[%emt 0:2:42]} 13. Nb5 {[%emt 0:0:34]} Ne5 {[%emt 0:23:44]} 14. Nxa7 {[%emt 0:4:51]} Bxe4 {[%emt 0:12:39]} 15. Bxe4 {[%emt 0:0:4]} Rxc4 {[%emt 0:0:6]} 16. Bxh7+ {[%emt 0:0:3]} Nxh7 {[%emt 0:0:30]} 17. Qb3 {[%emt 0:0:3]} Qa8 {[%emt 0:12:26]} 18. Nb5 {[%emt 0:3:46]} d5 {[%emt 0:1:22]} 19. Qg3 {[%emt 0:15:12]} Ng6 {[%emt 0:3:2]} 20. Bb4 {[%emt 0:13:31]} Rd8 {[%emt 0:1:2]} 21. b3 {[%emt 0:5:5]} Rcc8 {[%emt 0:5:8]} 22. Nd4 {[%emt 0:2:10]} e5 {[%emt 0:2:32]} 23. Nf5 {[%emt 0:3:2]} Rc6 {[%emt 0:11:12]} 24. Rac1 {[%emt 0:5:11]} Kh8 {[%emt 0:8:31]} 25. h4 {[%emt 0:0:32]} Rg8 {[%emt 0:0:7]} 26. Nd6 {[%emt 0:9:4]} Rf8 {[%emt 0:0:24]} 27. Rce1 {[%emt 0:0:10]} Qd8 {[%emt 0:4:52]} 28. h5 {[%emt 0:0:21]} Nf4 {[%emt 0:1:26]} 29. Rxe5 {[%emt 0:1:14]} Qf6 {[%emt 0:1:11]} 30. Rfe1 {[%emt 0:0:25]} Rc1 {[%emt 0:1:34]} 31. R5e3 {[%emt 0:16:32]} d4 {[%emt 0:2:24]} 32. Re4 {[%emt 0:3:41]} Rxe1+ {[%emt 0:0:41]} 33. Bxe1 {[%emt 0:0:18]} Nxh5 {[%emt 0:0:41]} 34. Qh4 {[%emt 0:0:23]} Qxh4 {[%emt 0:1:29]} 35. Rxh4 {[%emt 0:0:5]} N5f6 {[%emt 0:0:23]} 36. Rxd4 {[%emt 0:1:27]} Ng5 {[%emt 0:0:19]} 37. Rb4 {[%emt 0:0:39]} Nd7 {[%emt 0:0:28]} 38. Bd2 {[%emt 0:1:41]} Ne6 {[%emt 0:0:5]} 39. Be3 {[%emt 0:0:4]} Kg8 {[%emt 0:1:16]} 40. Nc4 {[%emt 0:0:51]} Ra8 {[%emt 0:0:30]} 41. a4 {[%emt 0:30:23]} Ra6 {[%emt 0:0:0]} 42. Nxb6 {[%emt 0:0:0]} Ne5 {[%emt 0:0:0]} 43. Rb5 {[%emt 0:0:0]} Nc6 {[%emt 0:0:0]} 44. Nd5 {[%emt 0:0:0]} Ncd4 {[%emt 0:0:0]} 45. Rb8+ {[%emt 0:0:0]} Kh7 {[%emt 0:0:0]} 46. Nc7 {[%emt 0:0:0]} Nxc7 {[%emt 0:0:0]} 47. Bxd4 {[%emt 0:0:0]} Ne6 {[%emt 0:0:0]} 48. Bb6 {[%emt 0:0:0]} Nf4 {[%emt 0:0:0]} 49. g3 {[%emt 0:0:0]} Nd5 {[%emt 0:0:0]} 50. Bc5 {[%emt 0:0:0]} g5 {[%emt 0:0:0]} 51. Rd8 {[%emt 0:0:0]} Nc3 {[%emt 0:0:0]} 52. Be3 {[%emt 0:0:0]} g4 {[%emt 0:0:0]} 53. Kf1 {[%emt 0:0:0]} Kg6 {[%emt 0:0:0]} 54. Rg8+ {[%emt 0:0:0]} Kf5 {[%emt 0:0:0]} 55. Rg5+ {[%emt 0:0:0]} Ke4 {[%emt 0:0:0]} 56. Rxg4+ {[%emt 0:0:0]} Kd3 {[%emt 0:0:0]} 57. Rc4 {[%emt 0:0:0]} f5 {[%emt 0:0:0]} 58. Rc5 {[%emt 0:0:0]} Rf6 {[%emt 0:0:0]} 59. Kg2 {[%emt 0:0:0]} Ne4 {[%emt 0:0:0]} 60. Rc8 {[%emt 0:0:0]} Rg6 {[%emt 0:0:0]} 61. Kf3 {[%emt 0:0:0]} Nc3 {[%emt 0:0:0]} 62. a5 {[%emt 0:0:0]} 1-0

[Event "56th Biel Festival MTO 2023"]
[White "Eidelman,Gabriel"]
[Black "Ajay Krishna,S."]
[Site "Biel"]
[Round "8.18"]
[Annotator "ChessBase"]
[Result "1-0"]
[Date "2023.07.26"]
[WhiteElo "2204"]
[BlackElo "2390"]
[PlyCount "81"]
[TimeControl "60"]

1. d4 {[%emt 0:0:0]} d5 {[%emt 0:0:0]} 2. c4 {[%emt 0:0:0]} e6 {[%emt 0:0:0]} 3. Nc3 {[%emt 0:0:0]} c6 {[%emt 0:0:0]} 4. e4 {[%emt 0:0:0]} dxe4 {[%emt 0:0:0]} 5. Nxe4 {[%emt 0:0:0]} Bb4+ {[%emt 0:0:0]} 6. Bd2 {[%emt 0:0:0]} Qxd4 {[%emt 0:0:0]} 7. Bxb4 {[%emt 0:0:0]} Qxe4+ {[%emt 0:0:0]} 8. Be2 {[%emt 0:0:0]} Na6 {[%emt 0:0:0]} 9. Bd6 {[%emt 0:0:0]} Qxg2 {[%emt 0:0:0]} 10. Qd2 {[%emt 0:0:0]} Nf6 {[%emt 0:3:10]} 11. Bf3 {[%emt 0:0:0]} Qg6 {[%emt 0:0:10]} 12. O-O-O {[%emt 0:0:0]} e5 {[%emt 0:2:23]} 13. Bxe5 {[%emt 0:0:0]} Be6 {[%emt 0:7:4]} 14. Ne2 {[%emt 0:0:0]} Qf5 {[%emt 0:0:26]} 15. Bf4 {[%emt 0:0:0]} Qc5 {[%emt 0:1:40]} 16. b3 {[%emt 0:0:50]} Qa3+ {[%emt 0:0:4]} 17. Kb1 {[%emt 0:0:37]} Bf5+ {[%emt 0:5:27]} 18. Ka1 {[%emt 0:0:16]} O-O {[%emt 0:0:6]} 19. Bd6 {[%emt 0:2:21]} Nc5 {[%emt 0:0:4]} 20. Qe3 {[%emt 0:0:39]} Nfd7 {[%emt 0:0:5]} 21. Bxf8 {[%emt 0:1:46]} Nxf8 {[%emt 0:4:49]} 22. Nd4 {[%emt 0:1:47]} Bg6 {[%emt 0:0:6]} 23. Qc1 {[%emt 0:2:16]} Qb4 {[%emt 0:3:5]} 24. Qd2 {[%emt 0:36:59]} Qb6 {[%emt 0:0:30]} 25. Qc3 {[%emt 0:27:46]} a5 {[%emt 0:16:42]} 26. Rd2 {[%emt 0:0:26]} Nfd7 {[%emt 0:8:3]} 27. Rg1 {[%emt 0:8:17]} Ne5 {[%emt 0:39:5]} 28. Nf5 {[%emt 0:11:23]} Qc7 {[%emt 0:0:5]} 29. Re1 {[%emt 0:1:53]} f6 {[%emt 0:0:16]} 30. Nh4 {[%emt 0:1:18]} Bf7 {[%emt 0:1:39]} 31. Bd1 {[%emt 0:1:28]} b5 {[%emt 0:5:2]} 32. f4 {[%emt 0:2:8]} Ned7 {[%emt 0:0:48]} 33. cxb5 {[%emt 0:1:18]} cxb5 {[%emt 0:0:58]} 34. Rxd7 {[%emt 0:3:22]} Qxd7 {[%emt 0:0:1]} 35. Qxc5 {[%emt 0:0:3]} Rc8 {[%emt 0:0:5]} 36. Qe3 {[%emt 0:0:49]} b4 {[%emt 0:1:3]} 37. Nf3 {[%emt 0:0:39]} Rc3 {[%emt 0:1:50]} 38. Qd4 {[%emt 0:0:23]} Qc7 {[%emt 0:1:14]} 39. Kb2 {[%emt 0:0:35]} Rc5 {[%emt 0:1:35]} 40. Qe4 {[%emt 0:0:36]} Rf5 {[%emt 0:2:21]} 41. Qa8+ {[%emt 0:0:0]} 1-0

[Event "56th Biel Festival MTO 2023"]
[White "Seul,Georg"]
[Black "Sutter,Oliver"]
[Site "Biel"]
[Round "8.19"]
[Annotator "ChessBase"]
[Result "1-0"]
[Date "2023.07.26"]
[WhiteElo "2376"]
[BlackElo "2313"]
[PlyCount "55"]
[TimeControl "60"]

1. e4 {[%emt 0:0:0]} e6 {[%emt 0:0:0]} 2. d4 {[%emt 0:0:0]} d5 {[%emt 0:0:0]} 3. e5 {[%emt 0:0:0]} c5 {[%emt 0:0:0]} 4. c3 {[%emt 0:0:0]} Nc6 {[%emt 0:0:0]} 5. Nf3 {[%emt 0:0:0]} Bd7 {[%emt 0:0:0]} 6. Be2 {[%emt 0:0:0]} f6 {[%emt 0:0:0]} 7. O-O {[%emt 0:0:0]} fxe5 {[%emt 0:0:0]} 8. Nxe5 {[%emt 0:0:0]} Nxe5 {[%emt 0:0:0]} 9. dxe5 {[%emt 0:0:0]} Qc7 {[%emt 0:0:0]} 10. Bf4 {[%emt 0:0:0]} O-O-O {[%emt 0:0:0]} 11. a4 {[%emt 0:0:0]} Ne7 {[%emt 0:2:22]} 12. Na3 {[%emt 0:0:0]} Ng6 {[%emt 0:1:0]} 13. Bg3 {[%emt 0:0:0]} c4 {[%emt 0:1:33]} 14. b3 {[%emt 0:13:51]} cxb3 {[%emt 0:7:29]} 15. Qxb3 {[%emt 0:2:25]} Kb8 {[%emt 0:12:7]} 16. c4 {[%emt 0:4:55]} d4 {[%emt 0:11:12]} 17. Nb5 {[%emt 0:10:25]} Qc5 {[%emt 0:6:29]} 18. Rfd1 {[%emt 0:16:22]} Bc6 {[%emt 0:2:48]} 19. Qb2 {[%emt 0:11:40]} Bxb5 {[%emt 0:11:0]} 20. cxb5 {[%emt 0:0:30]} h5 {[%emt 0:9:13]} 21. Rac1 {[%emt 0:3:27]} Qb6 {[%emt 0:3:3]} 22. h4 {[%emt 0:17:46]} Be7 {[%emt 0:3:33]} 23. Qa2 {[%emt 0:3:21]} d3 {[%emt 0:7:12]} 24. Bxd3 {[%emt 0:2:4]} Nxh4 {[%emt 0:0:42]} 25. a5 {[%emt 0:0:49]} Qd4 {[%emt 0:0:24]} 26. Qxe6 {[%emt 0:0:57]} Qb4 {[%emt 0:4:58]} 27. Rc4 {[%emt 0:1:52]} Rxd3 {[%emt 0:0:13]} 28. Rdc1 {[%emt 0:1:48]} 1-0

[Event "56th Biel Festival MTO 2023"]
[White "Haimovich,Tal"]
[Black "Joly,Julien"]
[Site "Biel"]
[Round "8.20"]
[Annotator "ChessBase"]
[Result "0-1"]
[Date "2023.07.26"]
[WhiteElo "2374"]
[BlackElo "2249"]
[PlyCount "96"]
[TimeControl "60"]

1. d4 {[%emt 0:0:0]} e6 {[%emt 0:0:0]} 2. c4 {[%emt 0:0:0]} d5 {[%emt 0:0:0]} 3. Nc3 {[%emt 0:0:0]} Bb4 {[%emt 0:0:0]} 4. e3 {[%emt 0:0:0]} Nf6 {[%emt 0:0:0]} 5. a3 {[%emt 0:0:20]} Bxc3+ {[%emt 0:0:0]} 6. bxc3 {[%emt 0:0:4]} O-O {[%emt 0:0:0]} 7. cxd5 {[%emt 0:0:10]} exd5 {[%emt 0:0:0]} 8. Bd3 {[%emt 0:0:10]} c5 {[%emt 0:0:15]} 9. Ne2 {[%emt 0:0:7]} b6 {[%emt 0:1:50]} 10. O-O {[%emt 0:0:57]} Ba6 {[%emt 0:5:57]} 11. f3 {[%emt 0:0:13]} Bxd3 {[%emt 0:14:25]} 12. Qxd3 {[%emt 0:0:28]} Re8 {[%emt 0:0:21]} 13. Ng3 {[%emt 0:7:23]} Nc6 {[%emt 0:1:42]} 14. Ra2 {[%emt 0:1:25]} Qd7 {[%emt 0:10:48]} 15. Re2 {[%emt 0:7:42]} Re6 {[%emt 0:9:50]} 16. Bb2 {[%emt 0:14:49]} Rd8 {[%emt 0:1:21]} 17. Rd1 {[%emt 0:2:21]} c4 {[%emt 0:13:14]} 18. Qc2 {[%emt 0:5:13]} h5 {[%emt 0:0:55]} 19. Rde1 {[%emt 0:1:51]} h4 {[%emt 0:1:9]} 20. Nf1 {[%emt 0:8:18]} Nh5 {[%emt 0:0:33]} 21. Bc1 {[%emt 0:1:52]} Rg6 {[%emt 0:3:36]} 22. e4 {[%emt 0:2:26]} Ne7 {[%emt 0:0:25]} 23. Rf2 {[%emt 0:9:13]} b5 {[%emt 0:2:25]} 24. Qd1 {[%emt 0:5:2]} Nf6 {[%emt 0:5:24]} 25. a4 {[%emt 0:0:55]} dxe4 {[%emt 0:7:26]} 26. fxe4 {[%emt 0:0:30]} Ng4 {[%emt 0:0:24]} 27. Rf4 {[%emt 0:2:31]} h3 {[%emt 0:1:3]} 28. Ng3 {[%emt 0:8:4]} hxg2 {[%emt 0:9:25]} 29. axb5 {[%emt 0:4:17]} Ne5 {[%emt 0:3:49]} 30. Qh5 {[%emt 0:6:5]} Nd3 {[%emt 0:4:0]} 31. Rh4 {[%emt 0:0:17]} f6 {[%emt 0:0:31]} 32. Rd1 {[%emt 0:2:35]} Nxc1 {[%emt 0:0:39]} 33. Rxc1 {[%emt 0:2:23]} Rh6 {[%emt 0:0:11]} 34. Qg4 {[%emt 0:0:6]} Rxh4 {[%emt 0:0:9]} 35. Qxh4 {[%emt 0:0:2]} Qxb5 {[%emt 0:0:58]} 36. Qg4 {[%emt 0:0:37]} Qb2 {[%emt 0:2:3]} 37. Qd1 {[%emt 0:2:46]} Ng6 {[%emt 0:0:52]} 38. Rc2 {[%emt 0:3:39]} Qb3 {[%emt 0:0:27]} 39. Kxg2 {[%emt 0:4:0]} Nf4+ {[%emt 0:0:45]} 40. Kf3 {[%emt 0:0:31]} Nd3 {[%emt 0:1:18]} 41. Ke2 {[%emt 0:0:0]} Kf7 {[%emt 0:0:0]} 42. Kd2 {[%emt 0:0:0]} Rh8 {[%emt 0:2:25]} 43. Qg1 {[%emt 0:2:1]} g6 {[%emt 0:6:6]} 44. d5 {[%emt 0:8:9]} Qa4 {[%emt 0:6:1]} 45. Ne2 {[%emt 0:4:4]} Rh4 {[%emt 0:4:0]} 46. Nc1 {[%emt 0:11:13]} Ne5 {[%emt 0:2:24]} 47. Kd1 {[%emt 0:2:16]} Rxe4 {[%emt 0:2:47]} 48. Qg2 {[%emt 0:2:12]} Ng4 {[%emt 0:0:48]} 0-1